Workbook

Sheet Mėnesio biudžeto suvestinė
B1: ĮMONĖS PAVADINIMAS
B2: MĖNESIO BIUDŽETAS | E2: Data
B4: BIUDŽETO SUMOS | C4: NUMATOMA | D4: FAKTINĖ | E4: SKIRTUMAS
B5: Pajamos | C5: =Pajamos[[#Totals],[NUMATOMA]] -> 63,300.00 | D5: =Pajamos[[#Totals],[FAKTINĖ]] -> 57,450.00 | E5: =Viso[[#This Row],[FAKTINĖ]]-Viso[[#This Row],[NUMATOMA]] -> -5,850.00
B6: Išlaidos | C6: =VeiklosIšlaidos[[#Totals],[NUMATOMA]]+PersonaloIšlaidos[[#Totals],[NUMATOMA]] -> 54,500.00 | D6: =VeiklosIšlaidos[[#Totals],[FAKTINĖ]]+PersonaloIšlaidos[[#Totals],[FAKTINĖ]] -> 49,630.00 | E6: =Viso[[#This Row],[NUMATOMA]]-Viso[[#This Row],[FAKTINĖ]] -> 4,870.00
B7: Balansas (pajamos atėmus išlaidas) | C7: =C5-C6 -> 8,800.00 | D7: =D5-D6 -> 7,820.00 | E7: =Viso[[#Totals],[FAKTINĖ]]-Viso[[#Totals],[NUMATOMA]] -> -980.00
B10: KOKIOS YRA MANO 5 DIDŽIAUSIOS VEIKLOS IŠLAIDOS?
B11: IŠLAIDOS | C11: SUMA | D11: % IŠLAIDŲ | E11: 15 % SUMAŽINIMAS
B12: =INDEX(VeiklosIšlaidos[],MATCH(_5PagrindinėsIšlaidos[[#This Row],[SUMA]],VeiklosIšlaidos[5 DIDŽIAUSIOS SUMOS],0),1) -> Priežiūra ir remontas | C12: =LARGE(VeiklosIšlaidos[5 DIDŽIAUSIOS SUMOS],1) -> 4,600.00 | D12: =_5PagrindinėsIšlaidos[[#This Row],[SUMA]]/$D$6 -> 9.3% | E12: =_5PagrindinėsIšlaidos[[#This Row],[SUMA]]*0.15 -> 690.00
B13: =INDEX(VeiklosIšlaidos[],MATCH(_5PagrindinėsIšlaidos[[#This Row],[SUMA]],VeiklosIšlaidos[5 DIDŽIAUSIOS SUMOS],0),1) -> Priemonės | C13: =LARGE(VeiklosIšlaidos[5 DIDŽIAUSIOS SUMOS],2) -> 4,500.00 | D13: =_5PagrindinėsIšlaidos[[#This Row],[SUMA]]/$D$6 -> 9.1% | E13: =_5PagrindinėsIšlaidos[[#This Row],[SUMA]]*0.15 -> 675.00
B14: =INDEX(VeiklosIšlaidos[],MATCH(_5PagrindinėsIšlaidos[[#This Row],[SUMA]],VeiklosIšlaidos[5 DIDŽIAUSIOS SUMOS],0),1) -> Nuoma ar būsto paskola | C14: =LARGE(VeiklosIšlaidos[5 DIDŽIAUSIOS SUMOS],3) -> 4,500.00 | D14: =_5PagrindinėsIšlaidos[[#This Row],[SUMA]]/$D$6 -> 9.1% | E14: =_5PagrindinėsIšlaidos[[#This Row],[SUMA]]*0.15 -> 675.00
B15: =INDEX(VeiklosIšlaidos[],MATCH(_5PagrindinėsIšlaidos[[#This Row],[SUMA]],VeiklosIšlaidos[5 DIDŽIAUSIOS SUMOS],0),1) -> Mokesčiai | C15: =LARGE(VeiklosIšlaidos[5 DIDŽIAUSIOS SUMOS],4) -> 3,200.00 | D15: =_5PagrindinėsIšlaidos[[#This Row],[SUMA]]/$D$6 -> 6.4% | E15: =_5PagrindinėsIšlaidos[[#This Row],[SUMA]]*0.15 -> 480.00
B16: =INDEX(VeiklosIšlaidos[],MATCH(_5PagrindinėsIšlaidos[[#This Row],[SUMA]],VeiklosIšlaidos[5 DIDŽIAUSIOS SUMOS],0),1) -> Reklama | C16: =LARGE(VeiklosIšlaidos[5 DIDŽIAUSIOS SUMOS],5) -> 2,500.00 | D16: =_5PagrindinėsIšlaidos[[#This Row],[SUMA]]/$D$6 -> 5.0% | E16: =_5PagrindinėsIšlaidos[[#This Row],[SUMA]]*0.15 -> 375.00
B17: Iš viso | C17: =SUBTOTAL(109,_5PagrindinėsIšlaidos[SUMA]) -> 19,300.00 | D17: =SUBTOTAL(109,_5PagrindinėsIšlaidos[% IŠLAIDŲ]) -> 38.9% | E17: =SUBTOTAL(109,_5PagrindinėsIšlaidos[15 % SUMAŽINIMAS]) -> 2,895.00

Sheet Pajamos
B1: =ĮMONĖS_PAVADINIMAS -> ĮMONĖS PAVADINIMAS
B2: =BIUDŽETAS_Pavadinimas -> MĖNESIO BIUDŽETAS
B4: PAJAMOS | C4: NUMATOMA | D4: FAKTINĖ | E4: 5 DIDŽIAUSIOS SUMOS | F4: SKIRTUMAS
B5: Grynasis pardavimas | C5: 60,000.00 | D5: 54,000.00 | E5: =Pajamos[[#This Row],[FAKTINĖ]]+(10^-6)*ROW(Pajamos[[#This Row],[FAKTINĖ]]) -> 54,000.00 | F5: =Pajamos[[#This Row],[FAKTINĖ]]-Pajamos[[#This Row],[NUMATOMA]] -> -6,000.00
B6: Palūkanų pajamos | C6: 3,000.00 | D6: 3,000.00 | E6: =Pajamos[[#This Row],[FAKTINĖ]]+(10^-6)*ROW(Pajamos[[#This Row],[FAKTINĖ]]) -> 3,000.00 | F6: =Pajamos[[#This Row],[FAKTINĖ]]-Pajamos[[#This Row],[NUMATOMA]] -> 0.00
B7: Turto pardavimas (pelnas / nuostolis) | C7: 300.00 | D7: 450.00 | E7: =Pajamos[[#This Row],[FAKTINĖ]]+(10^-6)*ROW(Pajamos[[#This Row],[FAKTINĖ]]) -> 450.00 | F7: =Pajamos[[#This Row],[FAKTINĖ]]-Pajamos[[#This Row],[NUMATOMA]] -> 150.00
B8: Pajamų suma | C8: =SUBTOTAL(109,Pajamos[NUMATOMA]) -> 63,300.00 | D8: =SUBTOTAL(109,Pajamos[FAKTINĖ]) -> 57,450.00 | F8: =SUBTOTAL(109,Pajamos[SKIRTUMAS]) -> -5,850.00

Sheet Personalo išlaidos
B1: =ĮMONĖS_PAVADINIMAS -> ĮMONĖS PAVADINIMAS
B2: =BIUDŽETAS_Pavadinimas -> MĖNESIO BIUDŽETAS
B4: PERSONALO IŠLAIDOS | C4: NUMATOMA | D4: FAKTINĖ | E4: 5 DIDŽIAUSIOS SUMOS | F4: SKIRTUMAS
B5: Darbo užmokesčiai | C5: 9,500.00 | D5: 9,600.00 | E5: =PersonaloIšlaidos[[#This Row],[FAKTINĖ]]+(10^-6)*ROW(PersonaloIšlaidos[[#This Row],[FAKTINĖ]]) -> 9,600.00 | F5: =PersonaloIšlaidos[[#This Row],[NUMATOMA]]-PersonaloIšlaidos[[#This Row],[FAKTINĖ]] -> -100.00
B6: Išmokos darbuotojams | C6: 4,000.00 | D6: 0.00 | E6: =PersonaloIšlaidos[[#This Row],[FAKTINĖ]]+(10^-6)*ROW(PersonaloIšlaidos[[#This Row],[FAKTINĖ]]) -> 0.00 | F6: =PersonaloIšlaidos[[#This Row],[NUMATOMA]]-PersonaloIšlaidos[[#This Row],[FAKTINĖ]] -> 4,000.00
B7: Komisiniai | C7: 5,000.00 | D7: 4,500.00 | E7: =PersonaloIšlaidos[[#This Row],[FAKTINĖ]]+(10^-6)*ROW(PersonaloIšlaidos[[#This Row],[FAKTINĖ]]) -> 4,500.00 | F7: =PersonaloIšlaidos[[#This Row],[NUMATOMA]]-PersonaloIšlaidos[[#This Row],[FAKTINĖ]] -> 500.00
B8: Bendros personalo išlaidos | C8: =SUBTOTAL(109,PersonaloIšlaidos[NUMATOMA]) -> 18,500.00 | D8: =SUBTOTAL(109,PersonaloIšlaidos[FAKTINĖ]) -> 14,100.00 | F8: =SUBTOTAL(109,PersonaloIšlaidos[SKIRTUMAS]) -> 4,400.00

Sheet Veiklos išlaidos
B1: =ĮMONĖS_PAVADINIMAS -> ĮMONĖS PAVADINIMAS
B2: =BIUDŽETAS_Pavadinimas -> MĖNESIO BIUDŽETAS
B4: VEIKLOS IŠLAIDOS | C4: NUMATOMA | D4: FAKTINĖ | E4: 5 DIDŽIAUSIOS SUMOS | F4: SKIRTUMAS
B5: Reklama | C5: 3,000.00 | D5: 2,500.00 | E5: =VeiklosIšlaidos[[#This Row],[FAKTINĖ]]+(10^-6)*ROW(VeiklosIšlaidos[[#This Row],[FAKTINĖ]]) -> 2,500.00 | F5: =VeiklosIšlaidos[[#This Row],[NUMATOMA]]-VeiklosIšlaidos[[#This Row],[FAKTINĖ]] -> 500.00
B6: Blogos skolos | C6: 2,000.00 | D6: 2,000.00 | E6: =VeiklosIšlaidos[[#This Row],[FAKTINĖ]]+(10^-6)*ROW(VeiklosIšlaidos[[#This Row],[FAKTINĖ]]) -> 2,000.00 | F6: =VeiklosIšlaidos[[#This Row],[NUMATOMA]]-VeiklosIšlaidos[[#This Row],[FAKTINĖ]] -> 0.00
B7: Mokėjimo nuolaidos | C7: 1,500.00 | D7: 2,175.00 | E7: =VeiklosIšlaidos[[#This Row],[FAKTINĖ]]+(10^-6)*ROW(VeiklosIšlaidos[[#This Row],[FAKTINĖ]]) -> 2,175.00 | F7: =VeiklosIšlaidos[[#This Row],[NUMATOMA]]-VeiklosIšlaidos[[#This Row],[FAKTINĖ]] -> -675.00
B8: Pristatymo išlaidos | C8: 2,000.00 | D8: 1,500.00 | E8: =VeiklosIšlaidos[[#This Row],[FAKTINĖ]]+(10^-6)*ROW(VeiklosIšlaidos[[#This Row],[FAKTINĖ]]) -> 1,500.00 | F8: =VeiklosIšlaidos[[#This Row],[NUMATOMA]]-VeiklosIšlaidos[[#This Row],[FAKTINĖ]] -> 500.00
B9: Nusidėvėjimas | C9: 1,000.00 | D9: 1,000.00 | E9: =VeiklosIšlaidos[[#This Row],[FAKTINĖ]]+(10^-6)*ROW(VeiklosIšlaidos[[#This Row],[FAKTINĖ]]) -> 1,000.00 | F9: =VeiklosIšlaidos[[#This Row],[NUMATOMA]]-VeiklosIšlaidos[[#This Row],[FAKTINĖ]] -> 0.00
B10: Mokesčiai ir prenumeratos | C10: 500.00 | D10: 525.00 | E10: =VeiklosIšlaidos[[#This Row],[FAKTINĖ]]+(10^-6)*ROW(VeiklosIšlaidos[[#This Row],[FAKTINĖ]]) -> 525.00 | F10: =VeiklosIšlaidos[[#This Row],[NUMATOMA]]-VeiklosIšlaidos[[#This Row],[FAKTINĖ]] -> -25.00
B11: Draudimas | C11: 1,300.00 | D11: 1,275.00 | E11: =VeiklosIšlaidos[[#This Row],[FAKTINĖ]]+(10^-6)*ROW(VeiklosIšlaidos[[#This Row],[FAKTINĖ]]) -> 1,275.00 | F11: =VeiklosIšlaidos[[#This Row],[NUMATOMA]]-VeiklosIšlaidos[[#This Row],[FAKTINĖ]] -> 25.00
B12: Palūkanos | C12: 2,000.00 | D12: 2,200.00 | E12: =VeiklosIšlaidos[[#This Row],[FAKTINĖ]]+(10^-6)*ROW(VeiklosIšlaidos[[#This Row],[FAKTINĖ]]) -> 2,200.00 | F12: =VeiklosIšlaidos[[#This Row],[NUMATOMA]]-VeiklosIšlaidos[[#This Row],[FAKTINĖ]] -> -200.00
B13: Teisinės ir audito išlaidos | C13: 1,000.00 | D13: 800.00 | E13: =VeiklosIšlaidos[[#This Row],[FAKTINĖ]]+(10^-6)*ROW(VeiklosIšlaidos[[#This Row],[FAKTINĖ]]) -> 800.00 | F13: =VeiklosIšlaidos[[#This Row],[NUMATOMA]]-VeiklosIšlaidos[[#This Row],[FAKTINĖ]] -> 200.00
B14: Priežiūra ir remontas | C14: 4,500.00 | D14: 4,600.00 | E14: =VeiklosIšlaidos[[#This Row],[FAKTINĖ]]+(10^-6)*ROW(VeiklosIšlaidos[[#This Row],[FAKTINĖ]]) -> 4,600.00 | F14: =VeiklosIšlaidos[[#This Row],[NUMATOMA]]-VeiklosIšlaidos[[#This Row],[FAKTINĖ]] -> -100.00
B15: Biuro reikmenys | C15: 800.00 | D15: 750.00 | E15: =VeiklosIšlaidos[[#This Row],[FAKTINĖ]]+(10^-6)*ROW(VeiklosIšlaidos[[#This Row],[FAKTINĖ]]) -> 750.00 | F15: =VeiklosIšlaidos[[#This Row],[NUMATOMA]]-VeiklosIšlaidos[[#This Row],[FAKTINĖ]] -> 50.00
B16: Pašto išlaidos | C16: 400.00 | D16: 350.00 | E16: =VeiklosIšlaidos[[#This Row],[FAKTINĖ]]+(10^-6)*ROW(VeiklosIšlaidos[[#This Row],[FAKTINĖ]]) -> 350.00 | F16: =VeiklosIšlaidos[[#This Row],[NUMATOMA]]-VeiklosIšlaidos[[#This Row],[FAKTINĖ]] -> 50.00
B17: Nuoma ar būsto paskola | C17: 4,100.00 | D17: 4,500.00 | E17: =VeiklosIšlaidos[[#This Row],[FAKTINĖ]]+(10^-6)*ROW(VeiklosIšlaidos[[#This Row],[FAKTINĖ]]) -> 4,500.00 | F17: =VeiklosIšlaidos[[#This Row],[NUMATOMA]]-VeiklosIšlaidos[[#This Row],[FAKTINĖ]] -> -400.00
B18: Pardavimo išlaidos | C18: 350.00 | D18: 400.00 | E18: =VeiklosIšlaidos[[#This Row],[FAKTINĖ]]+(10^-6)*ROW(VeiklosIšlaidos[[#This Row],[FAKTINĖ]]) -> 400.00 | F18: =VeiklosIšlaidos[[#This Row],[NUMATOMA]]-VeiklosIšlaidos[[#This Row],[FAKTINĖ]] -> -50.00
B19: Gabenimas ir saugojimas | C19: 900.00 | D19: 840.00 | E19: =VeiklosIšlaidos[[#This Row],[FAKTINĖ]]+(10^-6)*ROW(VeiklosIšlaidos[[#This Row],[FAKTINĖ]]) -> 840.00 | F19: =VeiklosIšlaidos[[#This Row],[NUMATOMA]]-VeiklosIšlaidos[[#This Row],[FAKTINĖ]] -> 60.00
B20: Priemonės | C20: 5,000.00 | D20: 4,500.00 | E20: =VeiklosIšlaidos[[#This Row],[FAKTINĖ]]+(10^-6)*ROW(VeiklosIšlaidos[[#This Row],[FAKTINĖ]]) -> 4,500.00 | F20: =VeiklosIšlaidos[[#This Row],[NUMATOMA]]-VeiklosIšlaidos[[#This Row],[FAKTINĖ]] -> 500.00
B21: Mokesčiai | C21: 3,000.00 | D21: 3,200.00 | E21: =VeiklosIšlaidos[[#This Row],[FAKTINĖ]]+(10^-6)*ROW(VeiklosIšlaidos[[#This Row],[FAKTINĖ]]) -> 3,200.00 | F21: =VeiklosIšlaidos[[#This Row],[NUMATOMA]]-VeiklosIšlaidos[[#This Row],[FAKTINĖ]] -> -200.00
B22: Telefonas | C22: 250.00 | D22: 280.00 | E22: =VeiklosIšlaidos[[#This Row],[FAKTINĖ]]+(10^-6)*ROW(VeiklosIšlaidos[[#This Row],[FAKTINĖ]]) -> 280.00 | F22: =VeiklosIšlaidos[[#This Row],[NUMATOMA]]-VeiklosIšlaidos[[#This Row],[FAKTINĖ]] -> -30.00
B23: Komunalinės paslaugos | C23: 1,400.00 | D23: 1,385.00 | E23: =VeiklosIšlaidos[[#This Row],[FAKTINĖ]]+(10^-6)*ROW(VeiklosIšlaidos[[#This Row],[FAKTINĖ]]) -> 1,385.00 | F23: =VeiklosIšlaidos[[#This Row],[NUMATOMA]]-VeiklosIšlaidos[[#This Row],[FAKTINĖ]] -> 15.00
B24: Kita | C24: 1,000.00 | D24: 750.00 | E24: =VeiklosIšlaidos[[#This Row],[FAKTINĖ]]+(10^-6)*ROW(VeiklosIšlaidos[[#This Row],[FAKTINĖ]]) -> 750.00 | F24: =VeiklosIšlaidos[[#This Row],[NUMATOMA]]-VeiklosIšlaidos[[#This Row],[FAKTINĖ]] -> 250.00
B25: Bendrosios veiklos išlaidos | C25: =SUBTOTAL(109,VeiklosIšlaidos[NUMATOMA]) -> 36,000.00 | D25: =SUBTOTAL(109,VeiklosIšlaidos[FAKTINĖ]) -> 35,530.00 | F25: =SUBTOTAL(109,VeiklosIšlaidos[SKIRTUMAS]) -> 470.00
